{"text_format":"1","workbook":"xlsx","n_sheets":2,"sheets":["Общий жур. отказы от поставок","Списки"],"not_rendered":{"charts":0,"images":0,"macros":1,"external_links":2,"defined_names":4,"comments":0,"pivot_tables":0},"unopened":[],"bounds":{"document_bytes":16777216,"sheet_cells":100000,"rows_first":2000,"rows_last":500,"rows_between":2000,"halvings":0,"cell_chars":16384,"cell_head_chars":4096},"cells_cut":0,"cells_raw":0,"read":"whole","date_system":"1900"}

{"sheet":"Общий жур. отказы от поставок","index":0,"n_rows":69,"n_cols":14,"rows_kept":69,"cut":false,"hidden":false,"merged":[[7,1,7,13]]}
[]
[null,null,"Кол-во, м³ (ЗАКАЗ):",{"$f":"SUBTOTAL(109,$I$10:$I$15682)","v":1514}]
[null,null,"Наш отказ",{"$f":"SUMPRODUCT(SUBTOTAL(109,INDIRECT(\"I\"&ROW($I$10:$I$15682)))*($J$10:$J$15682=C3))","v":68}]
[null,null,"Отказ клиента",{"$f":"SUMPRODUCT(SUBTOTAL(109,INDIRECT(\"I\"&ROW($I$10:$I$15682)))*($J$10:$J$15682=C4))","v":448}]
[null,null,"Перенос объема",{"$f":"SUMPRODUCT(SUBTOTAL(109,INDIRECT(\"I\"&ROW($I$10:$I$15682)))*($J$10:$J$15682=C5))","v":998}]
[null,null,"Отгруженно всего:",{"$f":"SUBTOTAL(109,$N$10:$N$15682)","v":5605.5}]
[]
[null,"ОБЩИЙ ЖУРНАЛ ОТКАЗОВ ОТ ПОСТАВОК"]
[null,"Дата","Завод","Клиент","Проект","Объект","Расстояние, км","Продукция","Кол-во, м³ (Заказ)","Причина отказа","Отгруженно всего сут/м³","кол-во работающих АБС, шт","Комментарий","Промежуточный итог"]
[null,"2016-01-05","РБУ-1 Дрожжино","ФМ Компания ",null,"Симферопольское шоссе",null,"Бетон В20",50,"Отказ клиента",4,3,"Отказ клиента, не готовы.",{"$f":"IF(Таблица13[[#This Row],[Дата]]=\"\",\"\",IF(B9<>Таблица13[[#This Row],[Дата]],Таблица13[[#This Row],[Отгруженно всего сут/м³]],\"\"))","v":4}]
[null,"2016-01-08","РБУ-1 Дрожжино","МСУ Град-1",null,"Боброво 22",null,"Раствор М200",2,"Отказ клиента",0,3,"Отказ клиента, не готовы.",{"$f":"IF(Таблица13[[#This Row],[Дата]]=\"\",\"\",IF(B10<>Таблица13[[#This Row],[Дата]],Таблица13[[#This Row],[Отгруженно всего сут/м³]],\"\"))","v":0}]
[null,"2016-01-08","РБУ-1 Дрожжино","МСУ Град-1",null,"Боброво 23",null,"Раствор М200",2,"Отказ клиента",0,3,"Отказ клиента, не готовы.",{"$f":"IF(Таблица13[[#This Row],[Дата]]=\"\",\"\",IF(B11<>Таблица13[[#This Row],[Дата]],Таблица13[[#This Row],[Отгруженно всего сут/м³]],\"\"))","v":""}]
[null,"2016-01-08","РБУ-1 Дрожжино","МСУ Град-1",null,"Боброво 26",null,"Бетон В30",15,"Отказ клиента",0,3,"Отказ клиента, не готовы.",{"$f":"IF(Таблица13[[#This Row],[Дата]]=\"\",\"\",IF(B12<>Таблица13[[#This Row],[Дата]],Таблица13[[#This Row],[Отгруженно всего сут/м³]],\"\"))","v":""}]
[null,"2016-01-08","РБУ-1 Дрожжино","МСУ Град-1",null,"Боброво 29",null,"Раствор М200",5,"Отказ клиента",0,3,"Отказ клиента, не готовы.",{"$f":"IF(Таблица13[[#This Row],[Дата]]=\"\",\"\",IF(B13<>Таблица13[[#This Row],[Дата]],Таблица13[[#This Row],[Отгруженно всего сут/м³]],\"\"))","v":""}]
[null,"2016-01-08","РБУ-1 Дрожжино","МСУ 4",null,"Боброво коллектор",null,"Бетон В25",10,"Отказ клиента",0,3,"Отказ клиента, не готовы.",{"$f":"IF(Таблица13[[#This Row],[Дата]]=\"\",\"\",IF(B14<>Таблица13[[#This Row],[Дата]],Таблица13[[#This Row],[Отгруженно всего сут/м³]],\"\"))","v":""}]
[null,"2016-01-08","РБУ-1 Дрожжино","Компания ФМ",null,"Симферопольское ш.",null,"Бетон В20",50,"Отказ клиента",0,3,"Отказ клиента, не готовы.",{"$f":"IF(Таблица13[[#This Row],[Дата]]=\"\",\"\",IF(B15<>Таблица13[[#This Row],[Дата]],Таблица13[[#This Row],[Отгруженно всего сут/м³]],\"\"))","v":""}]
[null,"2016-01-09","РБУ-1 Дрожжино","МСУ Град-1",null,"Боброво 22",null,"Раствор М200",2,"Наш отказ",0,3,"Наш отказ,ремонт РБУ",{"$f":"IF(Таблица13[[#This Row],[Дата]]=\"\",\"\",IF(B16<>Таблица13[[#This Row],[Дата]],Таблица13[[#This Row],[Отгруженно всего сут/м³]],\"\"))","v":0}]
[null,"2016-01-09","РБУ-1 Дрожжино","МСУ Град-1",null,"Боброво 23",null,"Раствор М200",2,"Наш отказ",0,3,"Наш отказ,ремонт РБУ",{"$f":"IF(Таблица13[[#This Row],[Дата]]=\"\",\"\",IF(B17<>Таблица13[[#This Row],[Дата]],Таблица13[[#This Row],[Отгруженно всего сут/м³]],\"\"))","v":""}]
[null,"2016-01-09","РБУ-1 Дрожжино","МСУ Град-1",null,"Боброво 26",null,"Бетон В30",15,"Наш отказ",0,3,"Наш отказ,ремонт РБУ",{"$f":"IF(Таблица13[[#This Row],[Дата]]=\"\",\"\",IF(B18<>Таблица13[[#This Row],[Дата]],Таблица13[[#This Row],[Отгруженно всего сут/м³]],\"\"))","v":""}]
[null,"2016-01-09","РБУ-1 Дрожжино","МСУ Град-1",null,"Боброво 29",null,"Раствор М200",5,"Наш отказ",0,3,"Наш отказ,ремонт РБУ",{"$f":"IF(Таблица13[[#This Row],[Дата]]=\"\",\"\",IF(B19<>Таблица13[[#This Row],[Дата]],Таблица13[[#This Row],[Отгруженно всего сут/м³]],\"\"))","v":""}]
[null,"2016-01-09","РБУ-1 Дрожжино","МСУ 4",null,"Боброво коллектор",null,"Бетон В25",10,"Наш отказ",0,3,"Наш отказ,ремонт РБУ",{"$f":"IF(Таблица13[[#This Row],[Дата]]=\"\",\"\",IF(B20<>Таблица13[[#This Row],[Дата]],Таблица13[[#This Row],[Отгруженно всего сут/м³]],\"\"))","v":""}]
[null,"2016-01-10","РБУ-1 Дрожжино","МСУ Град-1",null,"Боброво 22",null,"Раствор М200",2,"Наш отказ",0,3,"Наш отказ,ремонт РБУ",{"$f":"IF(Таблица13[[#This Row],[Дата]]=\"\",\"\",IF(B21<>Таблица13[[#This Row],[Дата]],Таблица13[[#This Row],[Отгруженно всего сут/м³]],\"\"))","v":0}]
[null,"2016-01-10","РБУ-1 Дрожжино","МСУ Град-1",null,"Боброво 23",null,"Раствор М200",2,"Наш отказ",0,3,"Наш отказ,ремонт РБУ",{"$f":"IF(Таблица13[[#This Row],[Дата]]=\"\",\"\",IF(B22<>Таблица13[[#This Row],[Дата]],Таблица13[[#This Row],[Отгруженно всего сут/м³]],\"\"))","v":""}]
[null,"2016-01-10","РБУ-1 Дрожжино","МСУ Град-1",null,"Боброво 26",null,"Бетон В30",15,"Наш отказ",0,3,"Наш отказ,ремонт РБУ",{"$f":"IF(Таблица13[[#This Row],[Дата]]=\"\",\"\",IF(B23<>Таблица13[[#This Row],[Дата]],Таблица13[[#This Row],[Отгруженно всего сут/м³]],\"\"))","v":""}]
[null,"2016-01-10","РБУ-1 Дрожжино","МСУ Град-1",null,"Боброво 29",null,"Раствор М200",5,"Наш отказ",0,3,"Наш отказ,ремонт РБУ",{"$f":"IF(Таблица13[[#This Row],[Дата]]=\"\",\"\",IF(B24<>Таблица13[[#This Row],[Дата]],Таблица13[[#This Row],[Отгруженно всего сут/м³]],\"\"))","v":""}]
[null,"2016-01-10","РБУ-1 Дрожжино","МСУ 4",null,"Боброво коллектор",null,"Бетон В25",10,"Наш отказ",0,3,"Наш отказ,ремонт РБУ",{"$f":"IF(Таблица13[[#This Row],[Дата]]=\"\",\"\",IF(B25<>Таблица13[[#This Row],[Дата]],Таблица13[[#This Row],[Отгруженно всего сут/м³]],\"\"))","v":""}]
[null,"2016-01-11","РБУ-1 Дрожжино","МСУ Град-1",null,"Боброво 23",null,"Раствор М200",2,"Отказ клиента",44.5,3,"Отказ клиента, не готовы.",{"$f":"IF(Таблица13[[#This Row],[Дата]]=\"\",\"\",IF(B26<>Таблица13[[#This Row],[Дата]],Таблица13[[#This Row],[Отгруженно всего сут/м³]],\"\"))","v":44.5}]
[null,"2016-01-11","РБУ-1 Дрожжино","МСУ Град-1",null,"Боброво 29",null,"Раствор М200",5,"Отказ клиента",44.5,3,"Отказ клиента, не готовы.",{"$f":"IF(Таблица13[[#This Row],[Дата]]=\"\",\"\",IF(B27<>Таблица13[[#This Row],[Дата]],Таблица13[[#This Row],[Отгруженно всего сут/м³]],\"\"))","v":""}]
[null,"2016-01-11","РБУ-1 Дрожжино","МСУ 4",null,"Боброво коллектор",null,"Бетон В25",10,"Отказ клиента",44.5,3,"Отказ клиента, не готовы.",{"$f":"IF(Таблица13[[#This Row],[Дата]]=\"\",\"\",IF(B28<>Таблица13[[#This Row],[Дата]],Таблица13[[#This Row],[Отгруженно всего сут/м³]],\"\"))","v":""}]
[null,"2016-01-12","РБУ-1 Дрожжино","МСУ Град-1",null,"Боброво 26",null,"Бетон В30",15,"Отказ клиента",13.5,3,"Отказ клиента, не готовы.",{"$f":"IF(Таблица13[[#This Row],[Дата]]=\"\",\"\",IF(B29<>Таблица13[[#This Row],[Дата]],Таблица13[[#This Row],[Отгруженно всего сут/м³]],\"\"))","v":13.5}]
[null,"2016-01-12","РБУ-1 Дрожжино","МСУ Град-1",null,"Боброво 22",null,"Бетон В7,5",1,"Отказ клиента",13.5,3,"Отказ клиента, не готовы.",{"$f":"IF(Таблица13[[#This Row],[Дата]]=\"\",\"\",IF(B30<>Таблица13[[#This Row],[Дата]],Таблица13[[#This Row],[Отгруженно всего сут/м³]],\"\"))","v":""}]
[null,"2016-01-12","РБУ-1 Дрожжино","МСУ 2",null,"Бутово Парк 57",null,"Раствор М100",1,"Отказ клиента",13.5,3,"Отказ клиента, не готовы.",{"$f":"IF(Таблица13[[#This Row],[Дата]]=\"\",\"\",IF(B31<>Таблица13[[#This Row],[Дата]],Таблица13[[#This Row],[Отгруженно всего сут/м³]],\"\"))","v":""}]
[null,"2016-01-12","РБУ-1 Дрожжино","МСУ 2",null,"Бутово Парк 22",null,"Раствор М100",4,"Отказ клиента",13.5,3,"Отказ клиента, не готовы.",{"$f":"IF(Таблица13[[#This Row],[Дата]]=\"\",\"\",IF(B32<>Таблица13[[#This Row],[Дата]],Таблица13[[#This Row],[Отгруженно всего сут/м³]],\"\"))","v":""}]
[null,"2016-01-12","РБУ-1 Дрожжино","СМУ 1",null,"Щербинка,Овражная п.4",null,"Раствор М100",3,"Отказ клиента",13.5,3,"Отказ клиента, не готовы.",{"$f":"IF(Таблица13[[#This Row],[Дата]]=\"\",\"\",IF(B33<>Таблица13[[#This Row],[Дата]],Таблица13[[#This Row],[Отгруженно всего сут/м³]],\"\"))","v":""}]
[null,"2016-01-12","РБУ-1 Дрожжино","СМУ 1",null,"Щербинка,Овражная п.4",null,"Бетон В25",15,"Отказ клиента",13.5,3,"Отказ клиента, не готовы.",{"$f":"IF(Таблица13[[#This Row],[Дата]]=\"\",\"\",IF(B34<>Таблица13[[#This Row],[Дата]],Таблица13[[#This Row],[Отгруженно всего сут/м³]],\"\"))","v":""}]
[null,"2016-01-12","РБУ-1 Дрожжино","МСУ Град-1",null,"Боброво 29",null,"Раствор М200",5,"Отказ клиента",13.5,3,"Отказ клиента, не готовы.",{"$f":"IF(Таблица13[[#This Row],[Дата]]=\"\",\"\",IF(B35<>Таблица13[[#This Row],[Дата]],Таблица13[[#This Row],[Отгруженно всего сут/м³]],\"\"))","v":""}]
[null,"2016-01-12","РБУ-1 Дрожжино","МСУ 4",null,"Дрожжино 2 п 12/2 благоустройство",null,"Бетон В7,5",2,"Отказ клиента",13.5,3,"Отказ клиента, не готовы.",{"$f":"IF(Таблица13[[#This Row],[Дата]]=\"\",\"\",IF(B36<>Таблица13[[#This Row],[Дата]],Таблица13[[#This Row],[Отгруженно всего сут/м³]],\"\"))","v":""}]
[null,"2016-01-12","РБУ-1 Дрожжино","МСУ Град-1",null,"Боброво 23",null,"Раствор М200",2,"Отказ клиента",13.5,3,"Отказ клиента, не готовы.",{"$f":"IF(Таблица13[[#This Row],[Дата]]=\"\",\"\",IF(B37<>Таблица13[[#This Row],[Дата]],Таблица13[[#This Row],[Отгруженно всего сут/м³]],\"\"))","v":""}]
[null,"2016-01-12","РБУ-1 Дрожжино","МСУ 4",null,"Боброво 24",null,"Бетон В30",40,"Отказ клиента",13.5,3,"Отказ клиента, не готовы.",{"$f":"IF(Таблица13[[#This Row],[Дата]]=\"\",\"\",IF(B38<>Таблица13[[#This Row],[Дата]],Таблица13[[#This Row],[Отгруженно всего сут/м³]],\"\"))","v":""}]
[null,"2016-01-12","РБУ-1 Дрожжино","МСУ 4",null,"Дрожжино 2 к.37(школа)",null,"Бетон В25",2,"Отказ клиента",13.5,3,"Отказ клиента, не готовы.",{"$f":"IF(Таблица13[[#This Row],[Дата]]=\"\",\"\",IF(B39<>Таблица13[[#This Row],[Дата]],Таблица13[[#This Row],[Отгруженно всего сут/м³]],\"\"))","v":""}]
[null,"2016-01-12","РБУ-1 Дрожжино","МСУ 4",null,"Боброво КОС",null,"Бетон В30",3,"Отказ клиента",13.5,3,"Отказ клиента, не готовы.",{"$f":"IF(Таблица13[[#This Row],[Дата]]=\"\",\"\",IF(B40<>Таблица13[[#This Row],[Дата]],Таблица13[[#This Row],[Отгруженно всего сут/м³]],\"\"))","v":""}]
[null,"2016-01-12","РБУ-1 Дрожжино","МСУ 4",null,"Боброво водопровод",null,"Раствор М100",5,"Отказ клиента",13.5,3,"Отказ клиента, не готовы.",{"$f":"IF(Таблица13[[#This Row],[Дата]]=\"\",\"\",IF(B41<>Таблица13[[#This Row],[Дата]],Таблица13[[#This Row],[Отгруженно всего сут/м³]],\"\"))","v":""}]
[null,"2016-01-12","РБУ-1 Дрожжино","МСУ 4",null,"Боброво водопровод",null,"Бетон В15",12,"Отказ клиента",13.5,3,"Отказ клиента, не готовы.",{"$f":"IF(Таблица13[[#This Row],[Дата]]=\"\",\"\",IF(B42<>Таблица13[[#This Row],[Дата]],Таблица13[[#This Row],[Отгруженно всего сут/м³]],\"\"))","v":""}]
[null,"2016-01-12","РБУ-1 Дрожжино","МСУ 4",null,"Боброво коллектор",null,"Бетон В25",7,"Отказ клиента",13.5,3,"Отказ клиента, не готовы.",{"$f":"IF(Таблица13[[#This Row],[Дата]]=\"\",\"\",IF(B43<>Таблица13[[#This Row],[Дата]],Таблица13[[#This Row],[Отгруженно всего сут/м³]],\"\"))","v":""}]
[null,"2016-01-12","РБУ-1 Дрожжино","МСУ 4",null,"Боброво коллектор",null,"Бетон В7,5",2,"Отказ клиента",13.5,3,"Отказ клиента, не готовы.",{"$f":"IF(Таблица13[[#This Row],[Дата]]=\"\",\"\",IF(B44<>Таблица13[[#This Row],[Дата]],Таблица13[[#This Row],[Отгруженно всего сут/м³]],\"\"))","v":""}]
[null,"2016-01-12","РБУ-1 Дрожжино","МСУ 4",null,"Боброво КОС",null,"Бетон В30",5,"Отказ клиента",13.5,3,"Отказ клиента, не готовы.",{"$f":"IF(Таблица13[[#This Row],[Дата]]=\"\",\"\",IF(B45<>Таблица13[[#This Row],[Дата]],Таблица13[[#This Row],[Отгруженно всего сут/м³]],\"\"))","v":""}]
[null,"2016-01-12","РБУ-1 Дрожжино","МСУ 2",null,"Бутово Парк 21",null,"Бетон В25",8,"Отказ клиента",13.5,3,"Отказ клиента, не готовы.",{"$f":"IF(Таблица13[[#This Row],[Дата]]=\"\",\"\",IF(B46<>Таблица13[[#This Row],[Дата]],Таблица13[[#This Row],[Отгруженно всего сут/м³]],\"\"))","v":""}]
[null,"2016-01-12","РБУ-1 Дрожжино","МСУ 2",null,"Бутово Парк 22",null,"Бетон В25",20,"Отказ клиента",13.5,3,"Отказ клиента, не готовы.",{"$f":"IF(Таблица13[[#This Row],[Дата]]=\"\",\"\",IF(B47<>Таблица13[[#This Row],[Дата]],Таблица13[[#This Row],[Отгруженно всего сут/м³]],\"\"))","v":""}]
[null,"2016-01-12","РБУ-1 Дрожжино","СМУ 1",null,"Щербинка,Овражная(дорога)",null,"Бетон В7,5",15,"Отказ клиента",13.5,3,"Отказ клиента, не готовы.",{"$f":"IF(Таблица13[[#This Row],[Дата]]=\"\",\"\",IF(B48<>Таблица13[[#This Row],[Дата]],Таблица13[[#This Row],[Отгруженно всего сут/м³]],\"\"))","v":""}]
[null,"2016-01-12","РБУ-1 Дрожжино","СМУ 1",null,"Щербинка,Овражная(дорога)",null,"Бетон В15",3,"Отказ клиента",13.5,3,"Отказ клиента, не готовы.",{"$f":"IF(Таблица13[[#This Row],[Дата]]=\"\",\"\",IF(B49<>Таблица13[[#This Row],[Дата]],Таблица13[[#This Row],[Отгруженно всего сут/м³]],\"\"))","v":""}]
[null,"2016-01-13","РБУ-1 Дрожжино","СМУ 1",null,"Щербинка,Овражная  п.4",null,"Раствор М100",2,"Отказ клиента",23.5,3,"Отказ клиента, не готовы.",{"$f":"IF(Таблица13[[#This Row],[Дата]]=\"\",\"\",IF(B50<>Таблица13[[#This Row],[Дата]],Таблица13[[#This Row],[Отгруженно всего сут/м³]],\"\"))","v":23.5}]
[null,"2016-01-13","РБУ-1 Дрожжино","СМУ 1",null,"Щербинка,Овражная  п.4",null,"Бетон В25",14,"Отказ клиента",23.5,3,"Отказ клиента, не готовы.",{"$f":"IF(Таблица13[[#This Row],[Дата]]=\"\",\"\",IF(B51<>Таблица13[[#This Row],[Дата]],Таблица13[[#This Row],[Отгруженно всего сут/м³]],\"\"))","v":""}]
[null,"2016-01-13","РБУ-1 Дрожжино","МСУ Град-1",null,"Боброво 29",null,"Раствор М200",5,"Отказ клиента",23.5,3,"Отказ клиента, не готовы.",{"$f":"IF(Таблица13[[#This Row],[Дата]]=\"\",\"\",IF(B52<>Таблица13[[#This Row],[Дата]],Таблица13[[#This Row],[Отгруженно всего сут/м³]],\"\"))","v":""}]
[null,"2016-01-13","РБУ-1 Дрожжино","МСУ 4",null,"Дрожжино 2 п.12/2.благоустройство",null,"Бетон В7,5",2,"Отказ клиента",23.5,3,"Отказ клиента, не готовы.",{"$f":"IF(Таблица13[[#This Row],[Дата]]=\"\",\"\",IF(B53<>Таблица13[[#This Row],[Дата]],Таблица13[[#This Row],[Отгруженно всего сут/м³]],\"\"))","v":""}]
[null,"2016-01-13","РБУ-1 Дрожжино","МСУ 4",null,"Боброво 24",null,"Бетон В30",40,"Отказ клиента",23.5,3,"Отказ клиента, не готовы.",{"$f":"IF(Таблица13[[#This Row],[Дата]]=\"\",\"\",IF(B54<>Таблица13[[#This Row],[Дата]],Таблица13[[#This Row],[Отгруженно всего сут/м³]],\"\"))","v":""}]
[null,"2016-01-13","РБУ-1 Дрожжино","МСУ 4",null,"Дрожжино 2 к.37(школа)",null,"Бетон В25",2,"Отказ клиента",23.5,3,"Отказ клиента, не готовы.",{"$f":"IF(Таблица13[[#This Row],[Дата]]=\"\",\"\",IF(B55<>Таблица13[[#This Row],[Дата]],Таблица13[[#This Row],[Отгруженно всего сут/м³]],\"\"))","v":""}]
[null,"2016-01-13","РБУ-1 Дрожжино","МСУ 4",null,"Боброво КОС",null,"Бетон В30",3,"Отказ клиента",23.5,3,"Отказ клиента, не готовы.",{"$f":"IF(Таблица13[[#This Row],[Дата]]=\"\",\"\",IF(B56<>Таблица13[[#This Row],[Дата]],Таблица13[[#This Row],[Отгруженно всего сут/м³]],\"\"))","v":""}]
[null,"2016-01-13","РБУ-1 Дрожжино","МСУ 4",null,"Боброво водопровод",null,"Раствор М100",5,"Отказ клиента",23.5,3,"Отказ клиента, не готовы.",{"$f":"IF(Таблица13[[#This Row],[Дата]]=\"\",\"\",IF(B57<>Таблица13[[#This Row],[Дата]],Таблица13[[#This Row],[Отгруженно всего сут/м³]],\"\"))","v":""}]
[null,"2016-01-13","РБУ-1 Дрожжино","МСУ 4",null,"Боброво водопровод",null,"Бетон В15",12,"Отказ клиента",23.5,3,"Отказ клиента, не готовы.",{"$f":"IF(Таблица13[[#This Row],[Дата]]=\"\",\"\",IF(B58<>Таблица13[[#This Row],[Дата]],Таблица13[[#This Row],[Отгруженно всего сут/м³]],\"\"))","v":""}]
[null,"2016-01-13","РБУ-1 Дрожжино","МСУ 4",null,"Боброво коллектор",null,"Бетон В25",8,"Отказ клиента",23.5,3,"Отказ клиента, не готовы.",{"$f":"IF(Таблица13[[#This Row],[Дата]]=\"\",\"\",IF(B59<>Таблица13[[#This Row],[Дата]],Таблица13[[#This Row],[Отгруженно всего сут/м³]],\"\"))","v":""}]
[null,"2016-01-13","РБУ-1 Дрожжино","МСУ 4",null,"Боброво коллектор",null,"Бетон В7,5",2,"Отказ клиента",23.5,3,"Отказ клиента, не готовы.",{"$f":"IF(Таблица13[[#This Row],[Дата]]=\"\",\"\",IF(B60<>Таблица13[[#This Row],[Дата]],Таблица13[[#This Row],[Отгруженно всего сут/м³]],\"\"))","v":""}]
[null,"2016-01-13","РБУ-1 Дрожжино","МСУ 4",null,"Боброво КОС",null,"Бетон В30",4,"Отказ клиента",23.5,3,"Отказ клиента, не готовы.",{"$f":"IF(Таблица13[[#This Row],[Дата]]=\"\",\"\",IF(B61<>Таблица13[[#This Row],[Дата]],Таблица13[[#This Row],[Отгруженно всего сут/м³]],\"\"))","v":""}]
[null,"2016-01-13","РБУ-1 Дрожжино","МСУ 2",null,"Бутово Парк к.22",null,"Бетон В25",10,"Отказ клиента",23.5,3,"Отказ клиента, не готовы.",{"$f":"IF(Таблица13[[#This Row],[Дата]]=\"\",\"\",IF(B62<>Таблица13[[#This Row],[Дата]],Таблица13[[#This Row],[Отгруженно всего сут/м³]],\"\"))","v":""}]
[null,"2016-01-13","РБУ-1 Дрожжино","СМУ 1",null,"Щербинка,Овражная (дорога)",null,"Бетон В7,5",14,"Отказ клиента",23.5,3,"Отказ клиента, не готовы.",{"$f":"IF(Таблица13[[#This Row],[Дата]]=\"\",\"\",IF(B63<>Таблица13[[#This Row],[Дата]],Таблица13[[#This Row],[Отгруженно всего сут/м³]],\"\"))","v":""}]
[null,"2016-01-13","РБУ-1 Дрожжино","СМУ 1",null,"Щербинка,Овражная (дорога)",null,"Бетон В15",2,"Отказ клиента",23.5,3,"Отказ клиента, не готовы.",{"$f":"IF(Таблица13[[#This Row],[Дата]]=\"\",\"\",IF(B64<>Таблица13[[#This Row],[Дата]],Таблица13[[#This Row],[Отгруженно всего сут/м³]],\"\"))","v":""}]
[null,"2016-01-13","РБУ-1 Дрожжино","МСУ Град-1",null,"Дрожжино 2 п.32",null,"Раствор М200",2,"Отказ клиента",23.5,3,"Отказ клиента, не готовы.",{"$f":"IF(Таблица13[[#This Row],[Дата]]=\"\",\"\",IF(B65<>Таблица13[[#This Row],[Дата]],Таблица13[[#This Row],[Отгруженно всего сут/м³]],\"\"))","v":""}]
[null,"16.09.2016","РБУ-2 Люберецкий","Бетомакс","Бутово-Парк","Овражная дорога","ывыв","Бетон В12,5","ывсыв","Перенос объема","сывсы","сывсыв",null,{"$f":"IF(Таблица13[[#This Row],[Дата]]=\"\",\"\",IF(B66<>Таблица13[[#This Row],[Дата]],Таблица13[[#This Row],[Отгруженно всего сут/м³]],\"\"))","v":"сывсы"}]
[null,"2016-09-21","РБУ-1 Дрожжино","ДЗС ГРУПП","Бутово-Парк","Коллектор",411,"Бетон В12,5",545,"Перенос объема",5475,545,"ровапроворпаврор",{"$f":"IF(Таблица13[[#This Row],[Дата]]=\"\",\"\",IF(B67<>Таблица13[[#This Row],[Дата]],Таблица13[[#This Row],[Отгруженно всего сут/м³]],\"\"))","v":5475}]
[null,"2016-09-14","РБУ-2 Люберецкий","Боброво","Боброво ","Коллектор",34534,"Бетон В15",453,"Перенос объема",45,45,"",{"$f":"IF(Таблица13[[#This Row],[Дата]]=\"\",\"\",IF(B68<>Таблица13[[#This Row],[Дата]],Таблица13[[#This Row],[Отгруженно всего сут/м³]],\"\"))","v":45}]

{"sheet":"Списки","index":1,"n_rows":34,"n_cols":6,"rows_kept":34,"cut":false,"hidden":false,"merged":[]}
["Завод","Контрагент","Проект","Объект","Продукция","Причина отказа"]
["РБУ-1 Дрожжино","А-Строй","Бетомакс","Автомобильная дорога","Бетон В10","Наш отказ"]
["РБУ-2 Люберецкий","Белый Крест","Боброво ","блоки","Бетон В12,5","Отказ объекта"]
[null,"Бетомакс","Бутово-Парк","Коллектор","Бетон В15","Перенос объема"]
[null,"Боброво","Дрожжино-2","Овражная 4","Бетон В20"]
[null,"Бутово-Парк","Милиц.поселок","Овражная дорога","Бетон В22,5"]
[null,"Гамма","Щербинка, Новомосковский","поз. 1","Бетон В25"]
[null,"Гарант",null,"поз. 1,2 (пруд)","Бетон В30"]
[null,"Гусстрой",null,"поз. 10","Бетон В35"]
[null,"ДЗС ГРУПП",null,"поз. 12.1","Бетон В40"]
[null,"ДПУ",null,"поз. 14.1","Бетон В7,5"]
[null,"Кинкрос",null,"поз. 2 \"А\"","Раствор М100"]
[null,"КНАК",null,"поз. 21","Раствор М150"]
[null,"Компания ФМ",null,"поз. 22","Раствор М200"]
[null,"Мортон",null,"поз. 24","Раствор М300"]
[null,"Мосстрой-94",null,"поз. 25","Раствор М50"]
[null,"МР-Строй",null,"поз. 26","Раствор М75"]
[null,"МСК",null,"поз. 29","Цементное молочко"]
[null,"МСУ 2",null,"поз. 30"]
[null,"МСУ 4",null,"поз. 33"]
[null,"МСУ 5",null,"поз. 34"]
[null,"МСУ 6",null,"поз. 57"]
[null,"МСУ 7",null,"с/в"]
[null,"МСУ Град-1",null,"ул. Таллалихина"]
[null,"РДА-Строй"]
[null,"РегионКапСтрой"]
[null,"СМУ 1"]
[null,"СМУ 2"]
[null,"СМУ 7"]
[null,"ТЭКС"]
[null,"УИР-163"]
[null,"Финпроект"]
[null,"ФМ Компания"]
[null,"ЮНИТЕК"]